Workbook

Sheet кондитерская
A1: ООО "Хлебокомбинат "АБСОЛЮТ" | D1: Факт. адрес:625014, г. Тюмень, 3 км. Старого Тобольского тракта, 4а Контактные телефоны: 8 (3452) 393-888 - доб. 1-хлеб, 2-кондитерка; e-mail absolut-hlebzakaz@mail.ru
C2: Вид и вес упаковки | E2: Отпускная цена за упаковку, руб. | G2: Срок хранения | H2: Цена за кг, руб.
A4: Баранки ванильные | C4: 3,0 кг гофрокоробка | D4: 0,5 кг/6 прозрачный пакет с клипсой | E4: =SUM(H4*3) -> 240.0 | F4: 42.5 | G4: 30 суток | H4: 80.0
A5: Баранки яичные | E5: =SUM(H5*3) -> 240.0 | F5: 42.5 | H5: 80.0
A6: Баранки сахарные с маком | E6: 240.0 | F6: 42.5 | H6: 80.0
A7: Сушки "Малютка" | C7: 4,0 кг гофрокоробка | D7: 0,4 кг/10 прозрачный пакет- подушка | E7: =SUM(H7*4) -> 320.0 | F7: 37.0 | G7: 45 суток | H7: 80.0
A8: Сушки ванильные | E8: =SUM(H8*4) -> 292.0 | F8: 37.0 | H8: 73.0
A9: Сушка новая | E9: =SUM(H9*4) -> 292.0 | F9: 37.0 | H9: 73.0
A10: Сушки с маком | C10: - | E10: - | F10: 37.0 | H10: 80.0
A11: Маффины- кексы - коржики
A12: Коржик молочный | C12: 0,08 кг в индивидуальной п/э | E12: 13.0 | G12: 7 суток | H12: -
A13: Маффины "Лакомка" ванильные | C13: 0,3 кг/9 коррекс | D13: 1,0 кг коробка - "Телевизор" | E13: 54.0 | F13: 187.0 | G13: 21 сутки | H13: 187.0
A14: Маффины "Лакомка" шоколадные | E14: 54.0 | F14: 180.0 | H14: 180.0
A15: Кекс "Морковный" | C15: 0,18 кг/9 коррекс | E15: 52.0
A16: Кекс "Уфимский" | C16: 0,35 кг в индивидуальной п/э | E16: 55.0 | H16: -
A17: Кекс "Столичный" (с изюмом) цена за изделие весом 0,3 кг | C17: 0,3 кг в индивидуальной п/э | E17: 55.0 | H17: -
A19: "Банановое" (песочное с начинкой, кремфил "Банан") | C19: 0,4 кг/10 коррекс | D19: 3,0 кг коробка - "Телевизор" | E19: 50.00 | F19: =SUM(H19*3) -> 390.0 | G19: 45 суток | H19: 130.0
A20: "Твист" (песочное с какао) | C20: 0,5кг/12шт | D20: 2,0 кг коробка - "Телевизор" | E20: 54.0 | F20: =SUM(H20*2) -> 200.0 | G20: 60 суток | H20: 100.0
A21: Печенье сдобное кокосовое "Сердечки" (сдобное с кокосом) | C21: 0,5кг/12шт | E21: 88.0 | F21: =H21*2 -> 350.0 | G21: 45 суток | H21: 175.0
A22: "Греческое" (рассыпчатое печенье с семечками и овсяными хлопьями) | C22: 0,4кг/6 коррекс | E22: 60.0 | F22: =H22*2 -> 308.0 | G22: 45 суток | H22: 154.0
A23: "Атланта шоколад" (хрустящее печенье с какао) | C23: - | E23: - | F23: 280.0 | H23: 140.0
A24: "Атланта" (cдобное печенье) | C24: - | E24: - | F24: 288.0 | H24: 144.0
A25: "Атланта творожное" (печенье творожное с изюмом) | C25: 0,5кг/12 шт | D25: 2,5 кг коробка - "Телевизор" | E25: 75.00 | F25: =SUM(H25*2.5) -> 380.0 | G25: 90 суток | H25: 152.0
A26: "Атланта фруктовое" (тонкое печенье с малиновой начинкой) | C26: - | E26: - | F26: =H26*2.5 -> 370.0 | G26: 30 суток | H26: 148.0
A27: "Датское" (нежное рассыпчатое песочное печенье с какао) | C27: 0,35кг/12шт | D27: 2,5 кг коробка - "Телевизор" | E27: 45.00 | F27: =SUM(H27*2.5) -> 345.0 | G27: 60 суток | H27: 138.0
A28: "Колечки медовые" песочное со вкусом меда | C28: 0,4кг/ 12 коробка | D28: 2,0 кг коробка - "Телевизор" | E28: 52.00 | F28: =SUM(H28*2) -> 240.0 | H28: 120.0
A29: "Овсяное" с изюмом | C29: 0,4 кг/12 пакет п/э | D29: 3,5 кг коробка | E29: 47.0 | F29: =H29*3.5 -> 378.0 | H29: 108.0
A30: "Овсяное" с шоколадными каплями | E30: 48.0 | F30: =H30*3.5 -> 402.5 | H30: 115.0
A31: "Овсяное" (классическое по ГОСТу) | E31: 42.0 | F31: =H31*3.5 -> 343.0 | H31: 98.0
A32: "Колобок с вареной сгущенкой" (печенье с начинкой сгущеное молоко) | C32: 0,2кг/12шт в уп | D32: 2,5 кг коробка - "Телевизор" | E32: 24.0 | F32: =H32*2.5 -> 307.5 | H32: 123.0
A33: "Творожное с цукатами" | C33: 0,45кг/12 коррекс | D33: 2 кг корбка | E33: 80.0 | F33: =H33*2 -> 316.0 | G33: 30 суток | H33: 158.0
A34: Солнышко печенье сдобное | C34: 0,3кг/12 коррекс | D34: 2 кг коробка | E34: 42.0 | F34: =H34*2 -> 278.0 | H34: 139.0
A35: Сахарное "Топтыжка" топленое молоко | D35: 5,4 кг коробка | F35: 475.0 | G35: 90 суток | H35: 88.0
A36: Сахарное "Топтыжка" к кофе | D36: 5,4 кг коробка | F36: 574.0 | H36: 88.0
A37: Сахарное "Ажурное" сливочное | C37: 0,65/12 коробка | D37: 5 кг коробка | E37: 65.0 | F37: 480.0 | H37: 96.0
A38: Сахарное "Ажурное" шоколадное /новинка/ | C38: 0,65/12 коробка | E38: 65.0
A39: Сахарное "Абсолют" шоколадное | C39: - | D39: 4,5 кг коробка | E39: - | F39: 540.0 | H39: 120.0
A40: Сахарное "Абсолют юбилейное" | C40: 0,3 кг /18коррекс | D40: 4,5 кг коробка | E40: 39.0 | F40: 540.0 | H40: 120.0
A41: Сахарное "Кроха" | C41: 0,3 кг /18коррекс | D41: 2,0 кг коробка | E41: 30.0 | F41: =SUM(H41*2) -> 200.0 | H41: 100.0
A42: Сахарное " Фитнес" зерновое /новинка/ | C42: =C41 -> 0,3 кг /18коррекс | E42: 34.0 | F42: 220.0 | H42: 110.0
A43: "Орешки" с вареной сгущенкой | C43: 0,6 кг/12 коробка, | D43: 3,5 кг коробка - "Телевизор" | E43: 93.0 | F43: =SUM(H43*3.5) -> 490.0 | G43: 60 суток | H43: 140.0
A44: Вафли венские | C44: - | D44: 1,8 кг коробка -"телевизор" | E44: - | F44: =SUM(H44*1.8) -> 216.0 | G44: 30 суток | H44: 120.0
A45: Вафли венские с фруктовой начинкой | C45: 0,35кг/18 коррекс | D45: - | E45: 43.4 | F45: - | H45: -
A46: Вафли венские с вареной сгущенкой | E46: 49.0 | F46: - | H46: -
A47: Печенье сдобное "Лакомка клюквенная" | C47: 0,65кг /12 коробка | D47: 2,5 кг коробка - "Телевизор" | E47: 101.0 | F47: =SUM(H47*2.5) -> 370.0 | G47: 60 суток | H47: 148.0
A48: Печенье сдобное "Лакомка варенка" | C48: 0,65кг/12 коробка
A49: Печенье "Карусель" с фруктово-ягодной начинкой | C49: 0,5кг/12коробка | D49: 2,5 кг коробка - "Телевизор" | E49: 69.0 | F49: =SUM(H49*2.5) -> 320.0 | H49: 128.0
A50: Тарталетки | C50: 0,25кг | E50: 50.0 | G50: 90 суток
A51: "Воронежские "по ГОСТ | C51: 0,4 кг/14 пакет п/э | D51: 6,0 кг короб гофрокартон | E51: 44.0 | F51: =H51*6 -> 516.0 | G51: 60 суток | H51: 86.0
A52: "Комсомольские" по ГОСТ | E52: 44.0 | F52: 516.0 | H52: 86.0
A53: "Подмосковные" по ГОСТ | E53: 44.0 | F53: 516.0 | H53: 86.0
A54: "Шоколадные" по ГОСТ | E54: 47.0 | F54: 564.0 | H54: 94.0
A55: "Северные" по ГОСТ | E55: 42.0 | F55: 510.0 | H55: 85.0
A56: "Сахарные" по ГОСТ | E56: 42.0 | F56: 510.0 | H56: 85.0
A57: "Клюквенные" по ГОСТ | E57: 44.0 | F57: 516.0 | H57: 86.0
A58: "Ржаные" по ГОСТ | E58: 44.0 | F58: 516.0 | H58: 86.0
A59: "Коровка" с вареной сгущенкой | C59: 0,25 кг /18пакет | E59: 26.0 | F59: 576.0 | H59: 96.0
A60: "Абсолют" с лимонной начинкой | E60: 20.0 | F60: 528.0 | H60: 88.0

Sheet ХБ
B1: ООО "Хлебокомбинат "АБСОЛЮТ"
A2: Факт. адрес:625014, г. Тюмень, 3 км. Старого Тобольского тракта, 4а Контактные телефоны: 8 (3452) 393-888; e-mail absolut-hleb@mail.ru
A3: Наименование | B3: Вес изделия, кг. | C3: Цена изделия без упаковки, руб. | D3: Цена изделия в упаковке, руб. | E3: Цена изделия в нарезке, руб. | F3: Срок хранения | H3: Кол-во штук в лотке
F4: без уп-ки | G4: в уп-ке
A5: ХЛЕБ
A6: Хлеб Пшеничный I сорт | B6: 0.55 | C6: 22.80 | D6: 24.00 | E6: 25.00 | F6: 24 часа | G6: 72 часа | H6: 14
A7: Хлеб Пшеничный I сорт | B7: 0.28 | C7: - | D7: - | E7: 13.00
A8: Хлеб Дарницкий новинка | B8: 0.60 | C8: 21.00 | D8: - | E8: 22.70 | F8: 36 часов | G8: 4 суток | H8: 14
A9: Хлеб Дарницкий | B9: 0.30 | E9: 11.50 | F9: 36 часов | G9: 4 суток
A10: Хлеб Дарницкий | B10: 0.65 | C10: 24.00 | D10: 25.00 | E10: 26.00 | F10: 36 часов | G10: 4 суток | H10: 18
A11: Хлеб Дарницкий | B11: 0.35 | C11: - | D11: - | E11: 14.00
A12: Хлеб Дарницкий витаминиз. | B12: 0.65 | E12: 26.00 | G12: 4 суток
A13: Московский ржаной | B13: 0.50 | D13: 24.00 | E13: - | F13: 36 часов | G13: 5 суток | H13: 24
A14: Хлеб Бородинский | B14: 0.30 | D14: 21.00 | E14: - | F14: 36 часов | G14: 5 суток | H14: 24
A15: Хлеб «Абсолютик» | B15: 0.40 | D15: 24.50 | E15: - | F15: 36 часов | G15: 5 суток | H15: 24
A16: Хлеб Подовый I сорт | B16: 0.50 | D16: - | E16: 25.50 | F16: 24 часа | G16: 3 суток | H16: 12
A17: Хлеб «Геркулес 8 злаков» | B17: 0.40 | D17: - | E17: 26.00 | F17: 24 часа | G17: 3 суток | H17: 10
A18: Хлеб Столичный | B18: 0.60 | D18: - | E18: 27.00 | F18: 36 часов | G18: 4 суток | H18: 6
A19: Хлеб Российский | B19: 0.50 | D19: - | E19: 26.00 | F19: 36 часов | G19: 4 суток | H19: 10
A20: Хлеб «Баварский» | B20: 0.40 | D20: - | E20: 26.00 | F20: 36 часов | G20: 4 суток | H20: 10
A21: Хлеб «Мариинский» | B21: 0.40 | D21: - | E21: 29.00 | F21: 36 часов | G21: 5 суток | H21: 10
A22: Хлеб «Тостовый» к завтраку | B22: 0.40 | D22: - | E22: 25.00 | F22: 24 часа | G22: 3 суток | H22: 14
A23: Хлеб «Тостовый» к завтраку | B23: 0.20 | C23: - | D23: - | E23: 13.00 | G23: 3 суток
A24: Хлеб «Здоровье» I сорт | B24: 0.40 | D24: - | E24: 25.00 | F24: 24 часа | G24: 3 суток | H24: 10
A25: Хлеб «Полоцкий» | B25: 0.30 | D25: 26.00 | E25: - | F25: 36 часов | G25: 5 суток | H25: 30
A26: Хлеб «Белорусский» с клюквой | B26: 0.30 | C26: - | D26: - | E26: 28.00 | F26: 36 часов | G26: 5 суток
A27: Хлеб "Рябинушка" пшеничный витам. 1 сорт | B27: 0.55 | C27: - | D27: - | E27: 25.50
A28: Хлеб "Волшебная рожь" тостовый | B28: 0.18 | C28: - | D28: - | E28: 14.00 | G28: 4 суток
A29: Хлеб бездрожжевой "Утренний" | B29: 0.45 | C29: - | D29: 30.00 | E29: - | G29: 3 суток
A30: Хлеб бездрожжевой "Вечерний" | B30: 0.45 | C30: - | D30: 30.00 | E30: - | G30: 3 суток
A31: Хлеб Крестьянский из муки в/с уп | B31: 0.45 | D31: 17.00
A32: Хлеб Николаевский нарез /новинка/ | B32: 0.45 | C32: - | D32: - | E32: 20.00 | G32: 5 суток
A33: Квас сухой хлебный | B33: 0,5/1кг | D33: 20,00/40,00 | G33: 6 месяцев
A34: БАТОНЫ И БУЛОЧНЫЕ ИЗДЕЛИЯ
A35: Батон Нарезной в/с | B35: 0.40 | C35: 21.50 | D35: 22.50 | E35: 23.20 | F35: 24 часа | G35: 3 суток | H35: 14
A36: Батон с изюмом в/с | B36: 0.35 | C36: 24.80 | D36: 25.00 | E36: - | F36: 24 часа | G36: 3 суток | H36: 14
A37: Батон Особый в/с | B37: 0.35 | C37: - | D37: 22.00 | E37: 23.50 | F37: 24 часа | G37: 3 суток | H37: 10
A38: Витушка Сдобная в/с | B38: 0.40 | C38: 26.00 | D38: 28.00 | E38: - | F38: 24 часа | G38: - | H38: 14
A39: Крендель с маком в/с | B39: 0.40 | C39: - | D39: 45.00 | E39: - | F39: 24 часа | G39: - | H39: 6
A40: Булка Ярославская I сорт | B40: 0.10 | C40: 9.00 | D40: 10.50 | E40: - | F40: 16 часов | G40: 2 суток | H40: 20
A41: Сдоба Выборгская в/с сорт | B41: 0.10 | C41: 12.00 | D41: 13.50 | E41: - | G41: 72 часа
A42: Плюшка Московская | B42: 0.10 | C42: 11.00 | D42: 12.50 | E42: - | F42: 16 часов | G42: 72 часа | H42: 20
A43: Ватрушка"Дельфийская" с натуральными ягодами | B43: 0.07 | C43: - | D43: 15.00 | E43: - | F43: 16 часов | G43: 2 суток | H43: 20
A44: Рулетик с маком в/с | B44: 0.10 | C44: - | D44: 19.00 | E44: - | F44: 16 часов | G44: 2 суток
A45: Улитка сдоб. с фр.начинкой (новинка) | B45: 0.05 | D45: 7.50 | E45: - | G45: 5 суток
A46: Калач Нива с кунжутом в\с | B46: 0.40 | C46: - | D46: 23.00 | E46: - | G46: 3 суток
A47: Сырная палочка | B47: 0.075 | D47: 17.00 | G47: 72 часа
A48: ИЗДЕЛИЯ ИЗ СЛОЕННОГО ТЕСТА
A49: Круассан с вареным сгущ. молоком | B49: 0.09 | C49: - | D49: 18.00 | E49: - | F49: 24 часа | G49: 3 суток | H49: 30
A50: Круассан с земляничной начинкой | B50: 0.09 | C50: - | D50: 18.00 | F50: 24 часа | G50: 3 суток | H50: 30
A51: Круассан с шоколадной начинкой | B51: 0.09 | C51: - | D51: 20.00 | E51: -
A52: Слойка "Забава" с начинкой еживика | B52: 0.09 | D52: 16.00 | G52: 3 суток
A53: Слойка «Забава» с яблочной начинкой | B53: 0.07 | D53: 18.00 | E53: - | F53: 24 часа | G53: 3 суток | H53: 40
A54: Слойка «Забава» с вишневой начинкой | B54: 0.07 | C54: - | D54: 18.00 | E54: - | F54: 24 часа | G54: 3 суток | H54: 40
A55: Слойка «Забава» с творожной начинкой | B55: 0.07 | D55: 17.00
A56: СУХАРИ
A57: Сухари пшеничные сладкие в/с | B57: 0.5 | C57: - | D57: 40.00 | E57: - | F57: - | G57: 30 суток | H57: -
A58: Сухари-гренки пшеничные в/с | B58: 0.3 | C58: - | D58: 19.00 | E58: - | F58: - | G58: 30 суток | H58: -
A59: Сухари-гренки ржаные | B59: 0.3 | C59: - | D59: 16.00 | E59: - | F59: - | G59: 30 суток | H59: -
A60: Сухари панировочные | B60: 0.5 | C60: - | D60: 15.00 | E60: - | F60: - | G60: 4 мес. | H60: -
A61: Сухари панировочные | B61: 1.0 | C61: - | D61: 30.00 | E61: - | F61: - | G61: 4 мес. | H61: -
A62: ТЕСТО
A63: Тесто дрож. сдобное в/с | B63: 1.0 | C63: 65.00 | F63: 24 ч при t=+5-0 72 ч при t=-5-0
A64: Тесто дрожжевое в/с | B64: 1.0 | C64: 45.00
A65: Тесто слоенное пресное в/с | B65: 1/5 кг | D65: 70.00
A66: Тесто слоенное пресное в/с | B66: 1.0 | D66: 90.00
A67: Тесто слоеное дрожжевое в/с | B67: 1.0 | C67: 95.00 | F67: 30 суток при t=-18
A68: Тесто слоеное дрожжевое в/с | B68: 1/5 кг | C68: 74.00
A69: Тесто бездрожжевое слоеное "Абсолютно без хлопот" | B69: 0.5 | C69: 60.00 | F69: 120 суток при t=-18
A70: Тесто дрожжевое слоеное "Абсолютно без хлопот" | B70: 0.5 | C70: 62.00 | F70: 120 суток при t=-18

Sheet Лист1 (hidden)
